[Event "*** Titled Tuesday Blitz"]
[Site "Chess.com"]
[Date "2020.04.07"]
[Round "4"]
[White "arminmusovic"]
[Black "lucasran"]
[Result "1/2-1/2"]
[WhiteElo "2521"]
[BlackElo "2702"]
[TimeControl "180+1"]
[EndTime "13:43:14 PDT"]
[Termination "Game drawn - insufficient material"]

1. e4 {[%clk 0:03:00.9]} 1... c6 {[%clk 0:02:59.8]} 2. d4 {[%clk 0:02:57.8]}
2... d5 {[%clk 0:03:00.7]} 3. Nd2 {[%clk 0:02:58.4]} 3... dxe4 {[%clk
0:03:00.7]} 4. Nxe4 {[%clk 0:02:59.3]} 4... Bf5 {[%clk 0:03:01.1]} 5. Nd2 {[%clk
0:02:59.9]} 5... Qxd4 {[%clk 0:02:52.2]} 6. Ngf3 {[%clk 0:03:00.3]} 6... Qd8
{[%clk 0:02:50.4]} 7. Bc4 {[%clk 0:02:59.1]} 7... e6 {[%clk 0:02:50.2]} 8. O-O
{[%clk 0:02:59.4]} 8... Nf6 {[%clk 0:02:50.1]} 9. Bb3 {[%clk 0:02:59.9]} 9...
Be7 {[%clk 0:02:42.7]} 10. Qe2 {[%clk 0:03:00.3]} 10... O-O {[%clk 0:02:41.5]}
11. Nc4 {[%clk 0:02:58.4]} 11... Nbd7 {[%clk 0:02:26.2]} 12. Nd4 {[%clk
0:02:47.8]} 12... Bg4 {[%clk 0:02:16.4]} 13. f3 {[%clk 0:02:33.5]} 13... Bh5
{[%clk 0:02:12.8]} 14. Rd1 {[%clk 0:02:31.9]} 14... Nd5 {[%clk 0:02:01.1]} 15.
c3 {[%clk 0:02:11.8]} 15... Bg6 {[%clk 0:01:59.9]} 16. Bd2 {[%clk 0:02:03]}
16... Re8 {[%clk 0:01:59.9]} 17. Be1 {[%clk 0:02:03]} 17... Nc5 {[%clk
0:01:40.9]} 18. Bg3 {[%clk 0:01:51.7]} 18... Rc8 {[%clk 0:01:12.6]} 19. Ne5
{[%clk 0:01:43.5]} 19... Nxb3 {[%clk 0:01:04.1]} 20. axb3 {[%clk 0:01:41.5]}
20... Qb6 {[%clk 0:00:46.5]} 21. Nxg6 {[%clk 0:01:03.2]} 21... hxg6 {[%clk
0:00:45.9]} 22. Kh1 {[%clk 0:00:53.6]} 22... c5 {[%clk 0:00:44.9]} 23. Nb5
{[%clk 0:00:33.9]} 23... a6 {[%clk 0:00:41.7]} 24. c4 {[%clk 0:00:34.5]} 24...
axb5 {[%clk 0:00:31.8]} 25. cxd5 {[%clk 0:00:34.3]} 25... exd5 {[%clk
0:00:31.9]} 26. Rxd5 {[%clk 0:00:34.3]} 26... Bf6 {[%clk 0:00:32.1]} 27. Qc2
{[%clk 0:00:29.7]} 27... c4 {[%clk 0:00:31.8]} 28. Rad1 {[%clk 0:00:29]} 28...
Qa6 {[%clk 0:00:19.9]} 29. Rd6 {[%clk 0:00:27.8]} 29... Qa2 {[%clk 0:00:18.8]}
30. bxc4 {[%clk 0:00:17.4]} 30... Qxc4 {[%clk 0:00:18.4]} 31. Qf2 {[%clk
0:00:13.9]} 31... Qc5 {[%clk 0:00:14.5]} 32. Qf1 {[%clk 0:00:13.1]} 32... Qc4
{[%clk 0:00:14.1]} 33. Qf2 {[%clk 0:00:12.3]} 33... b4 {[%clk 0:00:14.4]} 34.
Rd7 {[%clk 0:00:12.3]} 34... Qc2 {[%clk 0:00:13.3]} 35. R7d2 {[%clk 0:00:08.9]}
35... Qb3 {[%clk 0:00:12.6]} 36. h4 {[%clk 0:00:08.5]} 36... Rc4 {[%clk
0:00:11.3]} 37. Rd7 {[%clk 0:00:07.5]} 37... Rc2 {[%clk 0:00:10.4]} 38. Qf1
{[%clk 0:00:05.8]} 38... Qxb2 {[%clk 0:00:10.1]} 39. Rxb7 {[%clk 0:00:06.1]}
39... Rd2 {[%clk 0:00:09.2]} 40. Rb1 {[%clk 0:00:05.1]} 40... Qc3 {[%clk
0:00:07.5]} 41. h5 {[%clk 0:00:05.6]} 41... gxh5 {[%clk 0:00:06.5]} 42. Rc1
{[%clk 0:00:06.2]} 42... Qd3 {[%clk 0:00:06.8]} 43. Qxd3 {[%clk 0:00:05.5]}
43... Rxd3 {[%clk 0:00:06.6]} 44. Kh2 {[%clk 0:00:06.1]} 44... b3 {[%clk
0:00:06.1]} 45. Rc6 {[%clk 0:00:05.4]} 45... h4 {[%clk 0:00:06.5]} 46. Bf4
{[%clk 0:00:04.6]} 46... Be5 {[%clk 0:00:05.4]} 47. Bxe5 {[%clk 0:00:04.7]}
47... Rxe5 {[%clk 0:00:06.3]} 48. Rc8+ {[%clk 0:00:05.3]} 48... Kh7 {[%clk
0:00:06.7]} 49. Rcb8 {[%clk 0:00:06.1]} 49... Rg5 {[%clk 0:00:06.7]} 50. Kh3
{[%clk 0:00:05.4]} 50... Rg3+ {[%clk 0:00:04.8]} 51. Kxh4 {[%clk 0:00:05.3]}
51... Rxg2 {[%clk 0:00:05.3]} 52. Rxb3 {[%clk 0:00:05.5]} 52... Rd6 {[%clk
0:00:05.2]} 53. Kh3 {[%clk 0:00:04.3]} 53... Rg5 {[%clk 0:00:05.3]} 54. R3b4
{[%clk 0:00:04.8]} 54... Rh6+ {[%clk 0:00:04.5]} 55. Rh4 {[%clk 0:00:05.3]}
55... Rxh4+ {[%clk 0:00:03.9]} 56. Kxh4 {[%clk 0:00:06.2]} 56... Rf5 {[%clk
0:00:04.8]} 57. Kg4 {[%clk 0:00:06.4]} 57... Rf6 {[%clk 0:00:05.4]} 58. f4
{[%clk 0:00:06.9]} 58... Kg6 {[%clk 0:00:06.3]} 59. Rb5 {[%clk 0:00:06.4]} 59...
Ra6 {[%clk 0:00:06.4]} 60. Rg5+ {[%clk 0:00:06.4]} 60... Kf6 {[%clk 0:00:06.9]}
61. Rf5+ {[%clk 0:00:06.7]} 61... Ke7 {[%clk 0:00:07.5]} 62. Re5+ {[%clk
0:00:07.6]} 62... Re6 {[%clk 0:00:07.2]} 63. Rb5 {[%clk 0:00:08.5]} 63... g6
{[%clk 0:00:07.2]} 64. f5 {[%clk 0:00:07.7]} 64... Re4+ {[%clk 0:00:07.2]} 65.
Kf3 {[%clk 0:00:08]} 65... Rc4 {[%clk 0:00:05.6]} 66. fxg6 {[%clk 0:00:08]}
66... fxg6 {[%clk 0:00:06.5]} 67. Rb6 {[%clk 0:00:08.6]} 67... Kf7 {[%clk
0:00:06.9]} 68. Kg3 {[%clk 0:00:08.9]} 68... Kg7 {[%clk 0:00:07.3]} 69. Rb5
{[%clk 0:00:08.3]} 69... Kh6 {[%clk 0:00:07.5]} 70. Ra5 {[%clk 0:00:08.8]} 70...
g5 {[%clk 0:00:07.6]} 71. Ra8 {[%clk 0:00:08.5]} 71... Rc3+ {[%clk 0:00:07.1]}
72. Kg4 {[%clk 0:00:08.4]} 72... Rc4+ {[%clk 0:00:07.6]} 73. Kg3 {[%clk
0:00:08.9]} 73... Kg6 {[%clk 0:00:07.9]} 74. Ra5 {[%clk 0:00:08.4]} 74... Kh5
{[%clk 0:00:07]} 75. Ra3 {[%clk 0:00:08.9]} 75... Rh4 {[%clk 0:00:06.8]} 76. Rb3
{[%clk 0:00:08.8]} 76... Rg4+ {[%clk 0:00:07.1]} 77. Kh3 {[%clk 0:00:08.9]}
77... Rd4 {[%clk 0:00:06]} 78. Kg3 {[%clk 0:00:08.5]} 78... Rd1 {[%clk
0:00:05.9]} 79. Rb4 {[%clk 0:00:07.5]} 79... Rd3+ {[%clk 0:00:05.3]} 80. Kg2
{[%clk 0:00:06.8]} 80... g4 {[%clk 0:00:05.3]} 81. Rb8 {[%clk 0:00:06.9]} 81...
Kg5 {[%clk 0:00:04.8]} 82. Rf8 {[%clk 0:00:06.3]} 82... Rd5 {[%clk 0:00:02.9]}
83. Rg8+ {[%clk 0:00:06.3]} 83... Kf4 {[%clk 0:00:02.8]} 84. Rf8+ {[%clk
0:00:06.6]} 84... Ke4 {[%clk 0:00:03.1]} 85. Kg3 {[%clk 0:00:05.9]} 85... Rg5
{[%clk 0:00:03]} 86. Rf4+ {[%clk 0:00:04.9]} 86... Ke5 {[%clk 0:00:03.5]} 87.
Rxg4 {[%clk 0:00:05.8]} 87... Rxg4+ {[%clk 0:00:04.4]} 88. Kxg4 {[%clk
0:00:06.1]} 1/2-1/2

[Event "*** Titled Tuesday Blitz"]
[Site "Chess.com"]
[Date "2020.04.07"]
[Round "4"]
[White "Sadikhov_Ulvi"]
[Black "nochewycandy"]
[Result "1-0"]
[WhiteElo "2717"]
[BlackElo "2521"]
[TimeControl "180+1"]
[EndTime "13:43:45 PDT"]
[Termination "Sadikhov_Ulvi won on time"]

1. e4 {[%clk 0:03:00.7]} 1... g6 {[%clk 0:03:00.6]} 2. d4 {[%clk 0:03:00.6]}
2... Bg7 {[%clk 0:03:01.2]} 3. Nc3 {[%clk 0:03:01.3]} 3... d6 {[%clk 0:03:01.6]}
4. g3 {[%clk 0:03:01.4]} 4... Nd7 {[%clk 0:02:57.4]} 5. Bg2 {[%clk 0:03:01]}
5... c5 {[%clk 0:02:58]} 6. Be3 {[%clk 0:02:59.3]} 6... cxd4 {[%clk 0:02:52.1]}
7. Bxd4 {[%clk 0:02:59]} 7... Bxd4 {[%clk 0:02:53]} 8. Qxd4 {[%clk 0:02:58.3]}
8... Ngf6 {[%clk 0:02:53.9]} 9. Nge2 {[%clk 0:02:52.9]} 9... O-O {[%clk
0:02:44.5]} 10. O-O {[%clk 0:02:49.7]} 10... Qb6 {[%clk 0:02:42.9]} 11. Qxb6
{[%clk 0:02:45.2]} 11... Nxb6 {[%clk 0:02:41.5]} 12. Nd4 {[%clk 0:02:45.3]}
12... Bd7 {[%clk 0:02:37.6]} 13. Rfe1 {[%clk 0:02:28.1]} 13... Rac8 {[%clk
0:02:34.4]} 14. e5 {[%clk 0:02:15.7]} 14... dxe5 {[%clk 0:02:31.1]} 15. Rxe5
{[%clk 0:02:15.2]} 15... Rfe8 {[%clk 0:02:16.2]} 16. Bxb7 {[%clk 0:02:06.4]}
16... Rc7 {[%clk 0:02:16.3]} 17. Ba6 {[%clk 0:01:54]} 17... Nc4 {[%clk
0:02:15.4]} 18. Bxc4 {[%clk 0:01:53.6]} 18... Rxc4 {[%clk 0:02:16.3]} 19. Rd1
{[%clk 0:01:47.8]} 19... Rb8 {[%clk 0:02:10.3]} 20. Nb3 {[%clk 0:01:47.3]} 20...
Bf5 {[%clk 0:02:05.4]} 21. Rd2 {[%clk 0:01:41.2]} 21... Kf8 {[%clk 0:01:21.1]}
22. f3 {[%clk 0:01:40.1]} 22... h5 {[%clk 0:01:16.6]} 23. h4 {[%clk 0:01:37.5]}
23... Ne8 {[%clk 0:01:11.1]} 24. Ra5 {[%clk 0:01:25.7]} 24... Rc7 {[%clk
0:01:09.6]} 25. Rd4 {[%clk 0:00:42.3]} 25... Bxc2 {[%clk 0:01:00.8]} 26. Nb5
{[%clk 0:00:34.1]} 26... Rcb7 {[%clk 0:00:56.5]} 27. Nxa7 {[%clk 0:00:30.3]}
27... Bxb3 {[%clk 0:00:56.2]} 28. axb3 {[%clk 0:00:28.9]} 28... Rxb3 {[%clk
0:00:57.1]} 29. Nc6 {[%clk 0:00:18.9]} 29... Rc8 {[%clk 0:00:56.9]} 30. Ne5
{[%clk 0:00:16.3]} 30... Rxb2 {[%clk 0:00:54.1]} 31. Rd1 {[%clk 0:00:15.6]}
31... Rcc2 {[%clk 0:00:52.7]} 32. Ra8 {[%clk 0:00:14.3]} 32... Rg2+ {[%clk
0:00:46.8]} 33. Kf1 {[%clk 0:00:13.4]} 33... Rbf2+ {[%clk 0:00:45.5]} 34. Ke1
{[%clk 0:00:12.9]} 34... Re2+ {[%clk 0:00:46]} 35. Kf1 {[%clk 0:00:12.7]} 35...
Ref2+ {[%clk 0:00:39.6]} 36. Ke1 {[%clk 0:00:12.7]} 36... Rg1+ {[%clk
0:00:36.1]} 37. Kxf2 {[%clk 0:00:13]} 37... Rxd1 {[%clk 0:00:37]} 38. f4 {[%clk
0:00:12.3]} 38... Rd6 {[%clk 0:00:32.8]} 39. Kf3 {[%clk 0:00:11]} 39... Rd1
{[%clk 0:00:20.6]} 40. Ke2 {[%clk 0:00:10.8]} 40... Rd6 {[%clk 0:00:20.9]} 41.
Kf3 {[%clk 0:00:11.2]} 41... Rd1 {[%clk 0:00:20.8]} 42. Ke3 {[%clk 0:00:09.5]}
42... Rd6 {[%clk 0:00:20.6]} 43. Rb8 {[%clk 0:00:09.1]} 43... f6 {[%clk
0:00:19.7]} 44. Nxg6+ {[%clk 0:00:08.9]} 44... Kf7 {[%clk 0:00:20]} 45. Nh8+
{[%clk 0:00:09.1]} 45... Kf8 {[%clk 0:00:18.6]} 46. Ng6+ {[%clk 0:00:08.9]}
46... Kf7 {[%clk 0:00:18.7]} 47. f5 {[%clk 0:00:09.3]} 47... Rd7 {[%clk
0:00:15.8]} 48. Nf4 {[%clk 0:00:08.3]} 48... Nc7 {[%clk 0:00:14.4]} 49. Nxh5
{[%clk 0:00:08.2]} 49... Rd5 {[%clk 0:00:12.4]} 50. g4 {[%clk 0:00:07.5]} 50...
Re5+ {[%clk 0:00:12.3]} 51. Kf3 {[%clk 0:00:07]} 51... Ra5 {[%clk 0:00:13.2]}
52. Nf4 {[%clk 0:00:06.6]} 52... Ra3+ {[%clk 0:00:13.3]} 53. Kf2 {[%clk
0:00:07]} 53... Ra2+ {[%clk 0:00:13.6]} 54. Kf3 {[%clk 0:00:07.5]} 54... Ra3+
{[%clk 0:00:14.2]} 55. Ke2 {[%clk 0:00:07.6]} 55... Ra2+ {[%clk 0:00:14.2]} 56.
Ke3 {[%clk 0:00:08]} 56... Ra3+ {[%clk 0:00:13.3]} 57. Kd2 {[%clk 0:00:07.9]}
57... Rg3 {[%clk 0:00:13.1]} 58. Ng6 {[%clk 0:00:06.8]} 58... e6 {[%clk
0:00:06.1]} 59. Rb7 {[%clk 0:00:05.7]} 59... exf5 {[%clk 0:00:05.5]} 60. gxf5
{[%clk 0:00:06.3]} 60... Rg2+ {[%clk 0:00:05.1]} 61. Kd3 {[%clk 0:00:05.6]}
61... Kg7 {[%clk 0:00:05.5]} 62. Rxc7+ {[%clk 0:00:05.5]} 62... Kh6 {[%clk
0:00:06.4]} 63. Nf4 {[%clk 0:00:05.3]} 63... Rf2 {[%clk 0:00:06]} 64. Ke3 {[%clk
0:00:05.3]} 64... Rf3+ {[%clk 0:00:03.7]} 65. Ke4 {[%clk 0:00:03.7]} 65... Re3+
{[%clk 0:00:03.4]} 66. Kd5 {[%clk 0:00:03.8]} 66... Re5+ {[%clk 0:00:03.6]} 67.
Kd6 {[%clk 0:00:03.5]} 67... Rxf5 {[%clk 0:00:04.5]} 68. Rc4 {[%clk 0:00:02.8]}
68... Ra5 {[%clk 0:00:03.4]} 69. Ke6 {[%clk 0:00:03]} 69... Ra6+ {[%clk
0:00:03.7]} 70. Kf7 {[%clk 0:00:03.4]} 70... Ra5 {[%clk 0:00:04.6]} 71. Kxf6
{[%clk 0:00:02.1]} 71... Ra6+ {[%clk 0:00:05.2]} 72. Ne6 {[%clk 0:00:02.5]}
72... Kh5 {[%clk 0:00:06.1]} 73. Rf4 {[%clk 0:00:02.6]} 73... Ra8 {[%clk
0:00:05.7]} 74. Ng7+ {[%clk 0:00:02.7]} 74... Kh6 {[%clk 0:00:06.1]} 75. Nf5+
{[%clk 0:00:03.3]} 75... Kh5 {[%clk 0:00:05.9]} 76. Ng7+ {[%clk 0:00:03.7]}
76... Kh6 {[%clk 0:00:06.4]} 77. Ne6 {[%clk 0:00:04.3]} 77... Kh5 {[%clk
0:00:05.6]} 78. Re4 {[%clk 0:00:03.7]} 78... Ra6 {[%clk 0:00:04.6]} 79. Kf7
{[%clk 0:00:03.6]} 79... Ra1 {[%clk 0:00:04.5]} 80. Ng7+ {[%clk 0:00:02.8]}
80... Kh6 {[%clk 0:00:03.2]} 81. h5 {[%clk 0:00:03.4]} 81... Rf1+ {[%clk
0:00:02.3]} 82. Kg8 {[%clk 0:00:03.3]} 82... Rg1 {[%clk 0:00:02.4]} 83. Re6+
{[%clk 0:00:03.5]} 1-0

[Event "*** Titled Tuesday Blitz"]
[Site "Chess.com"]
[Date "2020.04.07"]
[Round "5"]
[White "GuerrieroFromLevant"]
[Black "Vugar_Manafov"]
[Result "0-1"]
[WhiteElo "2330"]
[BlackElo "2677"]
[TimeControl "180+1"]
[EndTime "13:51:19 PDT"]
[Termination "Vugar_Manafov won by resignation"]

1. e4 {[%clk 0:03:00.9]} 1... Nf6 {[%clk 0:02:58.3]} 2. e5 {[%clk 0:02:58.7]}
2... Nd5 {[%clk 0:02:57.4]} 3. d4 {[%clk 0:02:59.1]} 3... d6 {[%clk 0:02:57.3]}
4. Nf3 {[%clk 0:02:59.2]} 4... Nb6 {[%clk 0:02:57]} 5. exd6 {[%clk 0:02:51.3]}
5... cxd6 {[%clk 0:02:56.8]} 6. c4 {[%clk 0:02:48.2]} 6... g6 {[%clk 0:02:56.5]}
7. Nc3 {[%clk 0:02:48.7]} 7... Bg7 {[%clk 0:02:55.8]} 8. Bg5 {[%clk 0:02:49.3]}
8... O-O {[%clk 0:02:55.6]} 9. Qd2 {[%clk 0:02:49.2]} 9... Nc6 {[%clk
0:02:55.9]} 10. Be2 {[%clk 0:02:42.2]} 10... Bg4 {[%clk 0:02:53.1]} 11. d5
{[%clk 0:02:11.5]} 11... Bxf3 {[%clk 0:02:50.3]} 12. gxf3 {[%clk 0:02:11.6]}
12... Nd4 {[%clk 0:02:31.7]} 13. O-O {[%clk 0:02:03.9]} 13... Nxc4 {[%clk
0:02:24.4]} 14. Bd1 {[%clk 0:02:04.3]} 14... Nxd2 {[%clk 0:02:23.5]} 0-1

[Event "*** Titled Tuesday Blitz"]
[Site "Chess.com"]
[Date "2020.04.07"]
[Round "5"]
[White "BobSacIt"]
[Black "ApacheSVD"]
[Result "0-1"]
[WhiteElo "2184"]
[BlackElo "2355"]
[TimeControl "180+1"]
[EndTime "13:52:00 PDT"]
[Termination "ApacheSVD won by resignation"]

1. e4 {[%clk 0:03:00.9]} 1... c5 {[%clk 0:03:00.2]} 2. Nf3 {[%clk 0:02:59.7]}
2... d6 {[%clk 0:03:00.6]} 3. d4 {[%clk 0:02:59.5]} 3... cxd4 {[%clk 0:03:01.5]}
4. Nxd4 {[%clk 0:02:59.8]} 4... Nf6 {[%clk 0:03:01.9]} 5. Nc3 {[%clk 0:03:00.2]}
5... g6 {[%clk 0:03:02.5]} 6. Be3 {[%clk 0:02:59.4]} 6... Bg7 {[%clk 0:03:03]}
7. f3 {[%clk 0:02:59.4]} 7... O-O {[%clk 0:03:03.7]} 8. Bc4 {[%clk 0:02:59.7]}
8... Nc6 {[%clk 0:03:04.4]} 9. Qd2 {[%clk 0:02:56.9]} 9... Bd7 {[%clk
0:03:04.7]} 10. O-O-O {[%clk 0:02:55.9]} 10... Rc8 {[%clk 0:03:05.3]} 11. Bb3
{[%clk 0:02:56.1]} 11... Nxd4 {[%clk 0:03:05.9]} 12. Bxd4 {[%clk 0:02:55.9]}
12... b5 {[%clk 0:03:06.8]} 13. Kb1 {[%clk 0:02:51.7]} 13... a5 {[%clk
0:03:06.7]} 14. a4 {[%clk 0:02:45.2]} 14... bxa4 {[%clk 0:03:07.6]} 15. Nxa4
{[%clk 0:02:41.1]} 15... Bxa4 {[%clk 0:03:07.3]} 16. Bxa4 {[%clk 0:02:41]} 16...
Rc4 {[%clk 0:03:08]} 17. Bb5 {[%clk 0:02:15.2]} 17... Nxe4 {[%clk 0:03:02.9]}
18. fxe4 {[%clk 0:02:04.9]} 18... Rxd4 {[%clk 0:03:03]} 19. Qe2 {[%clk
0:02:05.2]} 19... Rb4 {[%clk 0:03:02.9]} 20. b3 {[%clk 0:01:56.4]} 20... Qb6
{[%clk 0:03:02.4]} 21. Bd3 {[%clk 0:01:28.6]} 21... Rxb3+ {[%clk 0:02:45.4]} 22.
cxb3 {[%clk 0:01:19.5]} 22... Qxb3+ {[%clk 0:02:46.3]} 23. Kc1 {[%clk
0:01:19.8]} 23... Bh6+ {[%clk 0:02:46.5]} 24. Rd2 {[%clk 0:01:17.4]} 24... Rc8+
{[%clk 0:02:46.3]} 0-1

[Event "*** Titled Tuesday Blitz"]
[Site "Chess.com"]
[Date "2020.04.07"]
[Round "5"]
[White "MaxLeto"]
[Black "Walter_White_Poland"]
[Result "0-1"]
[WhiteElo "2307"]
[BlackElo "2133"]
[TimeControl "180+1"]
[EndTime "13:52:35 PDT"]
[Termination "Walter_White_Poland won by resignation"]

1. e4 {[%clk 0:03:00.9]} 1... e5 {[%clk 0:02:59.3]} 2. Nf3 {[%clk 0:03:00.7]}
2... Nc6 {[%clk 0:02:59.3]} 3. Bb5 {[%clk 0:03:00.8]} 3... a6 {[%clk 0:02:59.4]}
4. Bxc6 {[%clk 0:03:00.8]} 4... dxc6 {[%clk 0:02:58.4]} 5. O-O {[%clk
0:03:01.7]} 5... Bg4 {[%clk 0:02:58.3]} 6. h3 {[%clk 0:02:59]} 6... h5 {[%clk
0:02:58.3]} 7. d3 {[%clk 0:02:58.4]} 7... Qf6 {[%clk 0:02:58.2]} 8. Nbd2 {[%clk
0:02:56.4]} 8... Ne7 {[%clk 0:02:57.2]} 9. b3 {[%clk 0:02:54.3]} 9... Ng6 {[%clk
0:02:55.9]} 10. Bb2 {[%clk 0:01:54]} 10... Bd6 {[%clk 0:02:05.3]} 11. Qe2 {[%clk
0:01:30]} 11... Nf4 {[%clk 0:02:02.2]} 12. Qe3 {[%clk 0:01:30.3]} 12... Bxh3
{[%clk 0:01:56.8]} 13. gxh3 {[%clk 0:01:29.7]} 13... Qg6+ {[%clk 0:01:55.3]} 14.
Ng5 {[%clk 0:01:17.8]} 14... Qxg5+ {[%clk 0:01:51.7]} 15. Qg3 {[%clk 0:01:17.2]}
15... Ne2+ {[%clk 0:01:51.5]} 0-1

[Event "*** Titled Tuesday Blitz"]
[Site "Chess.com"]
[Date "2020.04.07"]
[Round "5"]
[White "AndrewDGreen"]
[Black "MisiekZielony"]
[Result "1-0"]
[WhiteElo "2326"]
[BlackElo "2133"]
[TimeControl "180+1"]
[EndTime "13:52:37 PDT"]
[Termination "AndrewDGreen won by resignation"]

1. d4 {[%clk 0:03:00.9]} 1... d5 {[%clk 0:02:59.1]} 2. Bf4 {[%clk 0:03:00.3]}
2... c5 {[%clk 0:02:54.6]} 3. e3 {[%clk 0:03:00]} 3... Qb6 {[%clk 0:02:54.3]} 4.
Nc3 {[%clk 0:02:57.6]} 4... a6 {[%clk 0:02:53.3]} 5. Nxd5 {[%clk 0:02:54.2]}
5... Qa5+ {[%clk 0:02:31]} 6. b4 {[%clk 0:02:27.6]} 6... cxb4 {[%clk 0:02:29.9]}
7. Nc7+ {[%clk 0:02:27.6]} 7... Kd7 {[%clk 0:02:29.4]} 8. Nxa8 {[%clk
0:02:27.5]} 8... b3+ {[%clk 0:02:21.2]} 9. Qd2 {[%clk 0:02:20.7]} 9... b2 {[%clk
0:02:11.4]} 10. Rb1 {[%clk 0:02:09.5]} 10... Qxa2 {[%clk 0:02:05.5]} 11. Qd1
{[%clk 0:02:01.3]} 11... e5 {[%clk 0:02:03.1]} 12. dxe5+ {[%clk 0:01:45.7]}
12... Ke8 {[%clk 0:01:57.8]} 13. Nc7+ {[%clk 0:01:44.2]} 1-0

[Event "*** Titled Tuesday Blitz"]
[Site "Chess.com"]
[Date "2020.04.07"]
[Round "5"]
[White "Kingsman132"]
[Black "Keranke"]
[Result "1/2-1/2"]
[WhiteElo "2418"]
[BlackElo "2784"]
[TimeControl "180+1"]
[EndTime "13:52:44 PDT"]
[Termination "Game drawn by agreement"]

1. Nf3 {[%clk 0:03:00.9]} 1... g6 {[%clk 0:02:58.1]} 2. e4 {[%clk 0:02:55.9]}
2... Bg7 {[%clk 0:02:57.9]} 3. d4 {[%clk 0:02:54.4]} 3... d6 {[%clk 0:02:58.2]}
4. Be2 {[%clk 0:02:52.5]} 4... Nf6 {[%clk 0:02:58.2]} 5. Nc3 {[%clk 0:02:49.8]}
5... O-O {[%clk 0:02:58.2]} 6. Be3 {[%clk 0:02:45.7]} 6... a6 {[%clk 0:02:54.7]}
7. a4 {[%clk 0:02:43.2]} 7... Nc6 {[%clk 0:02:53.7]} 8. d5 {[%clk 0:02:40.8]}
8... Nb4 {[%clk 0:02:48.4]} 9. h3 {[%clk 0:02:38.5]} 9... e6 {[%clk 0:02:40.6]}
10. O-O {[%clk 0:02:36]} 10... exd5 {[%clk 0:02:38.1]} 11. exd5 {[%clk
0:02:36.9]} 11... Re8 {[%clk 0:02:38.1]} 12. Qd2 {[%clk 0:02:33.5]} 12... c6
{[%clk 0:02:18.8]} 13. dxc6 {[%clk 0:02:30.9]} 13... bxc6 {[%clk 0:02:19.7]} 14.
Rfe1 {[%clk 0:02:27.5]} 14... Rb8 {[%clk 0:02:12.7]} 15. a5 {[%clk 0:02:24.3]}
15... Nbd5 {[%clk 0:02:07.3]} 16. Nxd5 {[%clk 0:02:20.6]} 16... Nxd5 {[%clk
0:02:06.7]} 17. Bd4 {[%clk 0:02:17.3]} 17... Bxd4 {[%clk 0:01:54.3]} 18. Nxd4
{[%clk 0:02:14.4]} 18... Bb7 {[%clk 0:01:48.8]} 19. Bxa6 {[%clk 0:02:02.8]}
1/2-1/2

[Event "*** Titled Tuesday Blitz"]
[Site "Chess.com"]
[Date "2020.04.07"]
[Round "5"]
[White "HrvojeZagreb"]
[Black "MalyDominator"]
[Result "1-0"]
[WhiteElo "2126"]
[BlackElo "2257"]
[TimeControl "180+1"]
[EndTime "13:52:44 PDT"]
[Termination "HrvojeZagreb won by resignation"]

1. d4 {[%clk 0:03:00.9]} 1... Nf6 {[%clk 0:02:32.5]} 2. Bf4 {[%clk 0:02:59.2]}
2... g6 {[%clk 0:02:31]} 3. Nc3 {[%clk 0:02:58.7]} 3... d5 {[%clk 0:02:29.9]} 4.
e3 {[%clk 0:02:58.7]} 4... Bg7 {[%clk 0:02:30.1]} 5. h4 {[%clk 0:02:59.2]} 5...
h5 {[%clk 0:02:29.3]} 6. Nf3 {[%clk 0:02:57.9]} 6... O-O {[%clk 0:02:17.2]} 7.
Ne5 {[%clk 0:02:57.4]} 7... Bf5 {[%clk 0:02:04.5]} 8. Be2 {[%clk 0:02:56.5]}
8... Nbd7 {[%clk 0:01:57.4]} 9. f3 {[%clk 0:02:55.8]} 9... c5 {[%clk 0:01:50.2]}
10. Qd2 {[%clk 0:02:54.6]} 10... c4 {[%clk 0:01:40.5]} 11. O-O-O {[%clk
0:02:48]} 11... Qa5 {[%clk 0:01:31.2]} 12. Kb1 {[%clk 0:02:35.3]} 12... b5
{[%clk 0:01:30.9]} 13. Nxd5 {[%clk 0:02:33]} 13... Qd8 {[%clk 0:01:07.3]} 14.
Nc6 {[%clk 0:02:27.9]} 14... Qe8 {[%clk 0:00:48.9]} 15. Nc7 {[%clk 0:02:27.7]}
1-0

[Event "*** Titled Tuesday Blitz"]
[Site "Chess.com"]
[Date "2020.04.07"]
[Round "5"]
[White "MasterKroket"]
[Black "BahadirOzen"]
[Result "1-0"]
[WhiteElo "2481"]
[BlackElo "2738"]
[TimeControl "180+1"]
[EndTime "13:52:48 PDT"]
[Termination "MasterKroket won by resignation"]

1. d4 {[%clk 0:03:00.9]} 1... d5 {[%clk 0:02:45.8]} 2. c4 {[%clk 0:03:00.1]}
2... e6 {[%clk 0:02:46.1]} 3. Nf3 {[%clk 0:03:00.5]} 3... Nf6 {[%clk 0:02:46]}
4. Nc3 {[%clk 0:03:01.1]} 4... Be7 {[%clk 0:02:46.3]} 5. Bf4 {[%clk 0:03:01.2]}
5... O-O {[%clk 0:02:46.3]} 6. e3 {[%clk 0:03:01.8]} 6... Nbd7 {[%clk
0:02:45.2]} 7. c5 {[%clk 0:03:02.1]} 7... Nh5 {[%clk 0:02:45.4]} 8. Bd3 {[%clk
0:03:02]} 8... Nxf4 {[%clk 0:02:43]} 9. exf4 {[%clk 0:03:02.9]} 9... b6 {[%clk
0:02:42.9]} 10. b4 {[%clk 0:02:58.1]} 10... a5 {[%clk 0:02:43.4]} 11. a3 {[%clk
0:02:56.9]} 11... c6 {[%clk 0:02:42.1]} 12. O-O {[%clk 0:02:54]} 12... Ba6
{[%clk 0:02:29.9]} 13. Bxa6 {[%clk 0:02:49.8]} 13... Rxa6 {[%clk 0:02:29.3]} 14.
Qe2 {[%clk 0:02:33]} 14... Ra7 {[%clk 0:01:33.3]} 15. b5 {[%clk 0:02:23.5]}
15... bxc5 {[%clk 0:01:12.3]} 16. bxc6 {[%clk 0:02:21.9]} 16... cxd4 {[%clk
0:01:07.6]} 17. Nb5 {[%clk 0:02:16.7]} 1-0

[Event "*** Titled Tuesday Blitz"]
[Site "Chess.com"]
[Date "2020.04.07"]
[Round "5"]
[White "Orest_Vovk"]
[Black "champ2005"]
[Result "0-1"]
[WhiteElo "2473"]
[BlackElo "2975"]
[TimeControl "180+1"]
[EndTime "13:52:53 PDT"]
[Termination "champ2005 won by resignation"]

1. g4 {[%clk 0:03:00.9]} 1... d5 {[%clk 0:02:57]} 2. Bg2 {[%clk 0:02:57]} 2...
c6 {[%clk 0:02:57.3]} 3. h3 {[%clk 0:02:57]} 3... e5 {[%clk 0:02:56.2]} 4. d4
{[%clk 0:02:57]} 4... e4 {[%clk 0:02:55.2]} 5. c4 {[%clk 0:02:57.1]} 5... Bd6
{[%clk 0:02:53.8]} 6. Nc3 {[%clk 0:02:57.3]} 6... Ne7 {[%clk 0:02:53.5]} 7. Qb3
{[%clk 0:02:57.3]} 7... O-O {[%clk 0:02:50.3]} 8. Bg5 {[%clk 0:02:56]} 8... Be6
{[%clk 0:02:30]} 9. c5 {[%clk 0:02:51.2]} 9... Bc7 {[%clk 0:02:15.5]} 10. Bxe7
{[%clk 0:02:39.3]} 10... Qxe7 {[%clk 0:02:14.8]} 11. Qxb7 {[%clk 0:02:39.6]}
11... e3 {[%clk 0:02:08]} 12. Qxa8 {[%clk 0:02:37.5]} 12... exf2+ {[%clk
0:02:07.5]} 13. Kxf2 {[%clk 0:02:37]} 13... Qd7 {[%clk 0:02:05.1]} 14. Kf1
{[%clk 0:02:24.6]} 14... Bg3 {[%clk 0:02:00.9]} 15. Na4 {[%clk 0:01:33.5]} 15...
Na6 {[%clk 0:01:51.2]} 16. Nb6 {[%clk 0:01:30.8]} 16... Qc7 {[%clk 0:01:49.2]}
17. Qxf8+ {[%clk 0:01:24.1]} 17... Kxf8 {[%clk 0:01:50.1]} 18. Na4 {[%clk
0:01:23.8]} 18... Qf4+ {[%clk 0:01:47.4]} 19. Nf3 {[%clk 0:01:20.8]} 19... Qe3
{[%clk 0:01:46.3]} 0-1